bitfinex/quotes_BTCUSD_20250114
["timestamp","ask_amount","ask_price","bid_price","bid_amount"]
[1736818633989,0.00179005,94886.0,94885.0,1.74717457]
[1736818634375,0.00179005,94886.0,94885.0,1.74317457]
[1736818634618,0.00179005,94886.0,94885.0,1.75117457]
[1736818635482,0.00179005,94886.0,94885.0,1.74317457]
[1736818635781,0.00179005,94886.0,94885.0,1.75117457]
[1736818636917,0.00179005,94886.0,94885.0,1.73917457]
[1736818637119,0.00179005,94886.0,94885.0,1.74317457]
[1736818637317,0.00179005,94886.0,94885.0,0.01607073]
[1736818637517,0.00179005,94886.0,94885.0,0.01207073]
[1736818637800,0.00179005,94886.0,94885.0,0.008]
[1736818638010,0.00179005,94886.0,94885.0,0.012]
[1736818638190,0.00179005,94886.0,94885.0,0.004]
[1736818638343,0.00179005,94886.0,94885.0,0.008]
[1736818638683,0.00179005,94886.0,94885.0,0.012]
[1736818640059,0.00179005,94886.0,94885.0,0.004]
[1736818640353,0.00179005,94886.0,94885.0,0.001]
[1736818640800,0.00179005,94886.0,94885.0,0.003]
[1736818641214,0.00179005,94886.0,94885.0,0.001]
[1736818641369,0.01487679,94886.0,94885.0,0.001]
[1736818641584,0.00179005,94886.0,94885.0,0.003]
[1736818642024,0.00179005,94886.0,94885.0,0.001]
[1736818642550,0.00179005,94886.0,94885.0,0.003]
[1736818643183,0.00179005,94886.0,94885.0,0.002]
[1736818643603,0.00179005,94886.0,94885.0,0.00636193]
[1736818643811,0.00179005,94886.0,94885.0,0.002]
[1736818644015,0.00179005,94886.0,94885.0,0.00736193]
[1736818644221,0.00179005,94886.0,94885.0,0.003]
[1736818646925,0.00179005,94886.0,94885.0,0.0038526]
[1736818647787,0.00179005,94886.0,94885.0,0.00927596]
[1736818647985,0.21256905,94886.0,94885.0,0.00827596]
[1736818648162,0.21256905,94886.0,94885.0,0.00727596]
[1736818648514,0.21256905,94886.0,94885.0,0.0038526]
[1736818648828,0.46807289,94886.0,94885.0,0.0088526]
[1736818649006,0.61807289,94886.0,94885.0,0.0088526]
[1736818649964,0.61807289,94886.0,94885.0,0.0008526]
[1736818650588,0.61807289,94886.0,94885.0,0.0028526]
[1736818651012,0.61807289,94886.0,94885.0,0.0018526]
[1736818651236,0.61807289,94886.0,94885.0,0.0008526]
[1736818651617,0.61807289,94886.0,94885.0,0.0018526]
[1736818651824,0.61807289,94886.0,94885.0,0.0008526]
[1736818652594,0.63950247,94886.0,94885.0,0.0008526]
[1736818653303,0.63950247,94886.0,94885.0,0.0018526]
[1736818653489,0.63950247,94886.0,94885.0,0.0008526]
[1736818653796,0.63950247,94886.0,94885.0,0.0018526]
[1736818653966,0.63950247,94886.0,94885.0,0.0008526]
[1736818654471,0.63950247,94886.0,94885.0,0.0018526]
[1736818656427,0.210821,94867.0,94862.0,0.00179235]
[1736818656605,0.49362484,94867.0,94862.0,0.00179235]
[1736818656950,0.54132484,94867.0,94862.0,0.00179235]
[1736818660942,0.49362484,94867.0,94862.0,0.00179235]
[1736818661356,0.210809,94873.0,94866.0,0.00191409]
[1736818661871,0.421618,94873.0,94866.0,0.00191409]
[1736818662067,0.421618,94873.0,94867.0,0.00467721]
[1736818663154,0.210818,94869.0,94867.0,0.00467721]
[1736818663766,0.210818,94869.0,94867.0,0.00567721]
[1736818665195,0.210818,94869.0,94867.0,0.00467721]
[1736818665411,0.210818,94869.0,94867.0,0.00567721]
[1736818665957,0.210818,94869.0,94867.0,0.00467721]
[1736818666185,0.01284844,94873.0,94867.0,0.00467721]
[1736818666374,0.01284844,94873.0,94867.0,0.00567721]
[1736818666518,0.12826836,94876.0,94867.0,0.00567721]
[1736818666720,0.210818,94869.0,94867.0,0.00567721]
[1736818666923,0.210818,94869.0,94867.0,0.00467721]
[1736818667349,0.421636,94869.0,94866.0,0.00091409]
[1736818667559,0.210821,94867.0,94866.0,0.00091409]
[1736818668347,0.49362484,94867.0,94866.0,0.00091409]
[1736818668896,0.54322484,94867.0,94866.0,0.00091409]
[1736818669217,0.64944888,94867.0,94866.0,0.00091409]
[1736818669389,0.54322484,94867.0,94866.0,0.00091409]
[1736818670692,0.54322484,94867.0,94866.0,0.00191409]
[1736818680100,0.54192479,94867.0,94866.0,0.00191409]
[1736818682442,0.49232479,94867.0,94866.0,0.00091409]
[1736818683489,0.49232479,94867.0,94866.0,0.00191409]
[1736818683667,0.49232479,94867.0,94866.0,0.00091409]
[1736818685879,0.49232479,94867.0,94866.0,0.00191409]
[1736818686869,0.15,94867.0,94866.0,0.00191409]
[1736818687065,0.210808,94873.0,94866.0,0.08191409]
[1736818687906,0.210808,94873.0,94866.0,0.08091409]
[1736818688436,0.210788,94882.0,94866.0,0.08091409]
[1736818688437,0.15,94875.0,94866.0,0.08091409]
[1736818688575,0.15,94875.0,94866.0,0.00091409]
[1736818688995,0.21081,94872.0,94866.0,0.00091409]
[1736818689219,0.15,94875.0,94866.0,0.00091409]
[1736818690794,0.210805,94874.0,94866.0,0.00091409]
[1736818691411,0.210816,94870.0,94866.0,0.00091409]
[1736818694319,0.210805,94874.0,94866.0,0.00091409]
[1736818694569,0.00179089,94870.0,94866.0,0.00091409]
[1736818695258,0.21260689,94870.0,94866.0,0.00091409]
[1736818696010,0.42342289,94870.0,94866.0,0.00091409]
[1736818697866,0.42342289,94870.0,94866.0,0.00191409]
[1736818698261,0.21260689,94870.0,94866.0,0.00191409]
[1736818700173,0.00179089,94870.0,94867.0,0.0469]
[1736818700977,0.42342089,94870.0,94866.0,0.00091409]
[1736818701419,0.42342089,94870.0,94867.0,0.001]
[1736818701637,0.42342089,94870.0,94867.0,0.002]
[1736818701814,0.42342089,94870.0,94866.0,0.00091409]
[1736818702325,0.42342089,94870.0,94866.0,0.00191409]
[1736818702542,0.42342089,94870.0,94866.0,0.00091409]
[1736818702895,0.42342089,94870.0,94867.0,0.001]
[1736818703102,0.42342089,94870.0,94866.0,0.00091409]
[1736818703288,0.42342089,94870.0,94866.0,0.00291409]
[1736818703773,0.42342089,94870.0,94866.0,0.00091409]
[1736818703952,0.42342089,94870.0,94866.0,0.00291409]
[1736818704335,0.42342089,94870.0,94866.0,0.00391409]
[1736818705738,0.42342089,94870.0,94866.0,0.00291409]
[1736818706295,0.42342089,94870.0,94866.0,0.00091409]
[1736818706507,0.42342089,94870.0,94866.0,0.00191409]
[1736818707515,0.42342089,94870.0,94866.0,0.00091409]
[1736818707715,0.42342089,94870.0,94866.0,0.00191409]
[1736818708194,0.42342089,94870.0,94866.0,0.00091409]
[1736818712390,0.33290265,94869.0,94866.0,0.00091409]
[1736818712564,0.173,94867.0,94866.0,0.00091409]
[1736818712803,0.15,94865.0,94862.0,0.00179235]
[1736818713015,0.13280384,94864.0,94839.0,0.0796]
[1736818713222,0.210873,94844.0,94837.0,0.04719277]
[1736818713459,0.421747,94844.0,94840.0,0.01138247]
[1736818713666,0.210873,94844.0,94837.0,0.04719277]
[1736818713873,0.210885,94839.0,94837.0,0.04719277]
[1736818714253,0.210885,94839.0,94838.0,0.01138484]
[1736818714486,0.210885,94839.0,94837.0,0.00379277]
[1736818714897,0.15,94838.0,94837.0,0.00179277]
[1736818715100,0.2322,94838.0,94837.0,0.00179277]
[1736818715224,0.36500384,94838.0,94837.0,0.00779277]
[1736818715431,0.36500384,94838.0,94837.0,0.00379277]
[1736818715667,0.36500384,94838.0,94837.0,0.00479277]
[1736818716124,0.36510132,94838.0,94837.0,0.00379277]
[1736818716354,0.36510132,94838.0,94837.0,0.00179277]
[1736818717619,0.36810132,94838.0,94837.0,0.00279277]
[1736818717856,0.36510132,94838.0,94837.0,0.00179277]
[1736818718082,0.37010132,94838.0,94837.0,0.00279277]
[1736818718318,0.37010132,94838.0,94837.0,0.00179277]
[1736818718551,0.37010132,94838.0,94837.0,0.00279277]
[1736818718852,0.37310132,94838.0,94837.0,0.00279277]
[1736818718969,0.41880132,94838.0,94837.0,0.00179277]
[1736818719221,0.42180132,94838.0,94837.0,0.00279277]
[1736818719457,0.41980132,94838.0,94837.0,0.00279277]
[1736818719721,0.42080132,94838.0,94837.0,0.00279277]
[1736818720165,0.41980132,94838.0,94837.0,0.00279277]
[1736818720667,0.36610132,94838.0,94837.0,0.00179277]
[1736818720896,0.36910132,94838.0,94837.0,0.00279277]
[1736818721128,0.36810132,94838.0,94837.0,0.00179277]
[1736818721552,0.37210132,94838.0,94837.0,0.00279277]
[1736818721783,0.36910132,94838.0,94837.0,0.00179277]
[1736818721952,0.36910132,94838.0,94837.0,0.00279277]
[1736818722162,0.37210132,94838.0,94837.0,0.00279277]
[1736818723388,0.37110132,94838.0,94837.0,0.00279277]
[1736818723561,0.36610132,94838.0,94837.0,0.00179277]
[1736818723968,0.36910132,94838.0,94837.0,0.00279277]
[1736818724152,0.36810132,94838.0,94837.0,0.00179277]
[1736818724349,0.36910132,94838.0,94837.0,0.00179277]
[1736818724557,0.37210132,94838.0,94837.0,0.00179277]
[1736818724756,0.36510132,94838.0,94837.0,0.00179277]
[1736818725156,0.36910132,94838.0,94837.0,0.00279277]
[1736818725379,0.36610132,94838.0,94837.0,0.00179277]
[1736818726596,0.36510132,94838.0,94837.0,0.00179277]
[1736818726758,0.36610132,94838.0,94837.0,0.00179277]
[1736818727280,0.36810132,94838.0,94837.0,0.00179277]
[1736818727476,0.28590132,94838.0,94837.0,0.00179277]
[1736818727692,0.28690132,94838.0,94837.0,0.00179277]
[1736818728208,0.28590132,94838.0,94837.0,0.00179277]
[1736818729428,0.17609748,94838.0,94837.0,0.00179277]
[1736818730187,0.17709748,94838.0,94837.0,0.00179277]
[1736818730626,0.17309748,94838.0,94837.0,0.00179277]
[1736818730832,0.17409748,94838.0,94837.0,0.00179277]
[1736818731027,0.17709748,94838.0,94837.0,0.00179277]
[1736818732234,0.17409748,94838.0,94837.0,0.00179277]
[1736818732631,0.17709748,94838.0,94837.0,0.00179277]
[1736818733013,0.17609748,94838.0,94837.0,0.00179277]
[1736818733798,0.17309748,94838.0,94837.0,0.00179277]
[1736818734221,0.17609748,94838.0,94837.0,0.00179277]
[1736818735612,0.17309748,94838.0,94837.0,0.00179277]
[1736818737662,0.17609748,94838.0,94837.0,0.00179277]
[1736818737805,0.17309748,94838.0,94837.0,0.00179277]
[1736818738268,0.28290132,94838.0,94837.0,0.00179277]
[1736818738594,0.28590132,94838.0,94837.0,0.00179277]
[1736818739070,0.28290132,94838.0,94837.0,0.00179277]
[1736818739279,0.28590132,94838.0,94837.0,0.00179277]
[1736818740640,0.28290132,94838.0,94837.0,0.00179277]
[1736818740845,0.28590132,94838.0,94837.0,0.00179277]
[1736818741743,0.28290132,94838.0,94837.0,0.00179277]
[1736818741944,0.28590132,94838.0,94837.0,0.00279277]
[1736818742381,0.28290132,94838.0,94837.0,0.00179277]
[1736818743190,0.28390132,94838.0,94837.0,0.00179277]
[1736818743600,0.28290132,94838.0,94837.0,0.00179277]
[1736818743799,0.28690132,94838.0,94837.0,0.00179277]
[1736818744046,0.28390132,94838.0,94837.0,0.00179277]
[1736818744533,0.28590132,94838.0,94837.0,0.00279277]
[1736818744711,0.28690132,94838.0,94837.0,0.00279277]
[1736818746315,0.28590132,94838.0,94837.0,0.00279277]
[1736818746870,0.28390132,94838.0,94837.0,0.00179277]
[1736818747174,0.28690132,94838.0,94837.0,0.00279277]
[1736818747598,0.26090132,94838.0,94837.0,0.00179277]
[1736818747777,0.00409748,94838.0,94837.0,0.00279277]
[1736818748011,0.00309748,94838.0,94837.0,0.00279277]
[1736818748165,0.00309748,94838.0,94837.0,0.29417489]
[1736818748360,0.00309748,94838.0,94837.0,0.54588461]
[1736818748564,0.00309748,94838.0,94837.0,2.05006181]
[1736818748565,9.748e-05,94838.0,94837.0,2.05006181]
[1736818749135,0.00109748,94838.0,94837.0,2.05006181]
[1736818749564,0.00109748,94838.0,94837.0,1.62936997]
[1736818749759,9.748e-05,94838.0,94837.0,1.62936997]
[1736818750094,0.00309748,94838.0,94837.0,1.63436997]
[1736818750302,9.748e-05,94838.0,94837.0,1.63336997]
[1736818750505,9.748e-05,94838.0,94837.0,1.63636997]
[1736818750899,9.748e-05,94838.0,94837.0,1.63236997]
[1736818751129,9.748e-05,94838.0,94837.0,1.63736997]
[1736818751259,9.748e-05,94838.0,94837.0,1.74717381]
[1736818752279,9.748e-05,94838.0,94837.0,1.74417381]
[1736818752479,9.748e-05,94838.0,94837.0,1.74717381]
[1736818753356,9.748e-05,94838.0,94837.0,1.74217381]
[1736818753561,9.748e-05,94838.0,94837.0,1.73917381]
[1736818754076,9.748e-05,94838.0,94837.0,1.74217381]
[1736818754294,9.748e-05,94838.0,94837.0,1.75117381]
[1736818755000,9.748e-05,94838.0,94837.0,1.74217381]
[1736818755486,9.748e-05,94838.0,94837.0,1.73917381]
[1736818755710,9.748e-05,94838.0,94837.0,1.74317381]
[1736818756173,9.748e-05,94838.0,94837.0,1.73917381]
[1736818756310,9.748e-05,94838.0,94837.0,1.75117381]
[1736818756545,9.748e-05,94838.0,94837.0,0.25117381]
[1736818756774,9.748e-05,94838.0,94837.0,0.13336997]
[1736818756951,9.748e-05,94838.0,94837.0,0.13736997]
[1736818757142,9.748e-05,94838.0,94837.0,0.14136997]
[1736818758268,9.748e-05,94838.0,94837.0,0.13336997]
[1736818758491,9.748e-05,94838.0,94837.0,0.12936997]
[1736818758730,9.748e-05,94838.0,94837.0,0.13236997]
[1736818759193,9.748e-05,94838.0,94837.0,0.00996997]
[1736818759603,9.748e-05,94838.0,94837.0,0.00979277]
[1736818760561,9.748e-05,94838.0,94837.0,0.00179277]
[1736818760764,9.748e-05,94838.0,94837.0,0.00679277]
[1736818761640,9.748e-05,94838.0,94837.0,0.01190319]
[1736818762010,9.748e-05,94838.0,94837.0,0.01490319]
[1736818762543,9.748e-05,94838.0,94837.0,0.20400703]
[1736818762744,9.748e-05,94838.0,94837.0,0.24716123]
[1736818762944,9.748e-05,94838.0,94837.0,0.25110703]
[1736818763126,9.748e-05,94838.0,94837.0,1.75410703]
[1736818763325,9.748e-05,94838.0,94837.0,1.74910703]
[1736818763540,9.748e-05,94838.0,94837.0,1.75110703]
[1736818763909,9.748e-05,94838.0,94837.0,1.74610703]
[1736818764115,9.748e-05,94838.0,94837.0,1.75510703]
[1736818764918,9.748e-05,94838.0,94837.0,1.76010703]
[1736818765531,9.748e-05,94838.0,94837.0,1.65030319]
[1736818766468,9.748e-05,94838.0,94837.0,1.64530319]
[1736818766674,9.748e-05,94838.0,94837.0,1.65158319]
[1736818766877,9.748e-05,94838.0,94837.0,1.64758319]
[1736818767302,9.748e-05,94838.0,94837.0,1.65658319]
[1736818767471,9.748e-05,94838.0,94837.0,1.57428319]
[1736818767701,9.748e-05,94838.0,94837.0,1.52090319]
[1736818767904,9.748e-05,94838.0,94837.0,1.63070703]
[1736818768111,9.748e-05,94838.0,94837.0,1.62570703]
[1736818768509,9.748e-05,94838.0,94837.0,1.63070703]
[1736818769046,9.748e-05,94838.0,94837.0,1.62170703]
[1736818769282,9.748e-05,94838.0,94837.0,1.63070703]
[1736818769489,9.748e-05,94838.0,94837.0,1.52090319]
[1736818772965,9.748e-05,94838.0,94837.0,0.02090319]
[1736818773321,9.748e-05,94838.0,94837.0,1.52090319]
[1736818773527,0.01112844,94848.0,94837.0,1.52090319]
[1736818773762,0.12826836,94850.0,94838.0,0.210885]
[1736818773962,0.33910536,94860.0,94839.0,0.210883]
[1736818774166,0.33910536,94860.0,94839.0,0.21683544]
[1736818774804,0.33910536,94860.0,94842.0,0.210875]
[1736818775078,0.33910536,94860.0,94843.0,0.00510445]
[1736818775739,0.35050009,94860.0,94843.0,0.00510445]
[1736818775939,0.56133709,94860.0,94843.0,0.00510445]
[1736818776473,0.56133709,94860.0,94843.0,0.00610445]
[1736818777389,0.12826836,94853.0,94843.0,0.00610445]
[1736818777762,0.12826836,94853.0,94843.0,0.00510445]
[1736818778951,0.12826836,94853.0,94843.0,0.00610445]
[1736818779158,0.35050009,94860.0,94844.0,0.210872]
[1736818779403,0.35050009,94860.0,94843.0,0.00710445]
[1736818779599,0.35050009,94860.0,94845.0,0.00510343]
[1736818779800,0.35050009,94860.0,94844.0,1.5]
[1736818780230,0.56133709,94860.0,94845.0,0.00510343]
[1736818781275,0.210849,94855.0,94845.0,0.00510343]
[1736818781612,0.210839,94859.0,94845.0,0.00510343]
[1736818781824,0.210839,94859.0,94845.0,0.00610343]
[1736818782452,0.210839,94859.0,94845.0,0.00510343]
[1736818782649,0.210839,94859.0,94845.0,0.001]
[1736818782891,0.421679,94859.0,94846.0,0.00510292]
[1736818784395,0.421679,94859.0,94840.0,1.5]
[1736818784575,0.12826836,94850.0,94847.0,0.00510241]
[1736818784769,0.210845,94856.0,94845.0,0.001]
[1736818784973,0.210845,94856.0,94840.0,1.5]
[1736818785183,0.210845,94856.0,94846.0,0.00510292]
[1736818785391,0.210845,94856.0,94846.0,0.001]
[1736818785726,0.210845,94856.0,94847.0,0.00510241]
[1736818786146,0.210845,94856.0,94845.0,0.001]
[1736818786352,0.210845,94856.0,94847.0,0.003]
[1736818786593,0.210845,94856.0,94846.0,0.00510292]
[1736818786812,0.210845,94856.0,94845.0,0.001]
[1736818787032,0.210845,94856.0,94847.0,0.00610241]
[1736818787236,0.210845,94856.0,94847.0,0.001]
[1736818788463,0.210845,94856.0,94839.0,0.210882]
[1736818788821,0.210845,94856.0,94847.0,0.001]
[1736818789450,0.210845,94856.0,94845.0,0.001]
[1736818789676,0.210845,94856.0,94846.0,0.00510292]
[1736818789917,0.210845,94856.0,94839.0,0.211882]
[1736818790122,0.210845,94856.0,94840.0,0.00510488]
[1736818790535,0.210845,94856.0,94845.0,0.001]
[1736818790981,0.210845,94856.0,94846.0,0.00510183]
[1736818791418,0.210845,94856.0,94847.0,0.001]
[1736818791851,0.210845,94856.0,94839.0,0.210882]
[1736818792083,0.210845,94856.0,94845.0,0.001]
[1736818792464,0.210845,94856.0,94846.0,0.00510183]
[1736818792853,0.210845,94856.0,94847.0,0.002]
[1736818793194,0.210845,94856.0,94847.0,0.001]
[1736818794187,0.210845,94856.0,94848.0,0.0818]
[1736818794691,0.210845,94856.0,94849.0,0.00510031]
[1736818794962,0.210845,94856.0,94849.0,1.50510031]
[1736818795193,0.286119,94868.0,94849.0,1.50510031]
[1736818795194,0.0753,94875.0,94850.0,0.10980384]
[1736818795447,0.00179005,94886.0,94858.0,0.42168]
[1736818795654,0.01159586,94879.0,94860.0,0.210837]
[1736818795878,0.01159586,94879.0,94861.0,1.69265779]
[1736818796098,0.01159586,94879.0,94861.0,1.69668479]
[1736818796783,0.00179005,94886.0,94861.0,2.04668479]
[1736818797010,0.00179005,94886.0,94861.0,2.51372279]
[1736818797208,0.00179005,94886.0,94861.0,2.31678979]
[1736818797822,0.00179005,94886.0,94861.0,2.32466489]
[1736818798128,0.00179005,94886.0,94861.0,2.32218489]
[1736818798338,0.00179005,94886.0,94869.0,0.1]
[1736818798548,0.00179005,94886.0,94869.0,0.28745764]
[1736818798768,0.00179005,94886.0,94869.0,0.29226416]
[1736818798972,0.00179005,94886.0,94869.0,0.57500946]
[1736818799172,0.00179005,94886.0,94869.0,2.07500946]
[1736818799548,0.00190907,94870.0,94869.0,2.07500946]
[1736818799730,0.00190907,94870.0,94869.0,2.08400946]
[1736818799937,0.00190907,94870.0,94869.0,1.80126416]
[1736818800734,0.00190907,94870.0,94869.0,1.80726416]
[1736818804111,0.00190907,94870.0,94869.0,0.30126416]
[1736818804498,0.00190907,94870.0,94869.0,0.29826416]
[1736818804716,0.00190907,94870.0,94869.0,1.80726416]
[1736818806918,0.00190907,94870.0,94869.0,3.91164416]
[1736818807129,0.00190907,94870.0,94869.0,3.08986816]
[1736818807336,0.00190907,94870.0,94869.0,2.10566416]
[1736818807504,0.00190907,94870.0,94869.0,2.89715116]
[1736818807726,0.00190907,94870.0,94869.0,2.10566416]
[1736818807897,0.00190907,94870.0,94869.0,2.34415316]
[1736818808097,0.00190907,94870.0,94869.0,2.32915316]
[1736818808305,0.00190907,94870.0,94869.0,2.09066416]
[1736818808504,0.00190907,94870.0,94869.0,2.10566416]
[1736818808705,0.00190907,94870.0,94869.0,1.76190416]
[1736818808935,0.00190907,94870.0,94869.0,1.62190416]
[1736818809137,0.00190907,94870.0,94869.0,1.63790416]
[1736818809297,0.00190907,94870.0,94869.0,1.62890416]
[1736818809758,0.00190907,94870.0,94869.0,1.63090416]
[1736818809955,0.00190907,94870.0,94869.0,1.62166416]
[1736818810134,0.00190907,94870.0,94869.0,1.62790416]
[1736818812214,0.00190907,94870.0,94869.0,1.63690416]
[1736818815318,0.00190907,94870.0,94869.0,1.63090416]
[1736818815532,0.00190907,94870.0,94869.0,1.63690416]
[1736818816137,0.00190907,94870.0,94869.0,1.63090416]
[1736818816334,0.00190907,94870.0,94869.0,1.63690416]
[1736818817375,0.00190907,94870.0,94869.0,1.63066416]
[1736818817605,0.00190907,94870.0,94869.0,1.52710032]
[1736818817803,0.00190907,94870.0,94869.0,1.52086032]
[1736818818117,0.00190907,94870.0,94869.0,1.51486032]
[1736818818317,0.00190907,94870.0,94869.0,0.01486032]
[1736818818528,0.00190907,94870.0,94869.0,0.013]
[1736818818728,0.08110907,94870.0,94869.0,0.013]
[1736818818954,0.08110907,94870.0,94869.0,0.009]
[1736818819315,0.08110907,94870.0,94869.0,0.012]
[1736818819539,0.08110907,94870.0,94869.0,0.003]
[1736818819745,0.09247033,94870.0,94869.0,0.003]
[1736818819932,0.09247033,94870.0,94869.0,0.011]
[1736818820117,0.09247033,94870.0,94869.0,0.003]
[1736818820618,0.09247033,94870.0,94869.0,0.008]
[1736818820976,0.09247033,94870.0,94869.0,0.005]
[1736818821183,0.09247033,94870.0,94869.0,0.008]
[1736818821875,0.09247033,94870.0,94869.0,0.005]
[1736818822272,0.09247033,94870.0,94869.0,1.505]
[1736818822566,0.09247033,94870.0,94869.0,1.5056686]
[1736818822867,0.09347033,94870.0,94869.0,1.5066686]
[1736818823289,0.09347033,94870.0,94869.0,0.0066686]
[1736818823783,0.09247033,94870.0,94869.0,0.001]
[1736818824709,0.01327033,94870.0,94862.0,0.0008525]
[1736818825032,0.01327033,94870.0,94869.0,0.001]
[1736818825492,0.01327033,94870.0,94866.0,1.5]
[1736818825698,0.01327033,94870.0,94869.0,0.0056686]
[1736818825909,0.01327033,94870.0,94869.0,0.001]
[1736818826286,0.01327033,94870.0,94866.0,1.5]
[1736818826488,0.01327033,94870.0,94869.0,0.0056686]
[1736818826968,0.01327033,94870.0,94869.0,0.001]
[1736818827172,0.01327033,94870.0,94869.0,0.0056686]
[1736818827719,0.01327033,94870.0,94866.0,1.502]
[1736818828026,0.01327033,94870.0,94866.0,1.501]
[1736818828173,0.00190907,94870.0,94867.0,0.00568882]
[1736818828377,0.00190907,94870.0,94868.0,0.32167684]
[1736818828581,0.00190907,94870.0,94868.0,0.32062284]
[1736818828786,0.00190907,94870.0,94869.0,0.23684146]
[1736818829034,0.00190907,94870.0,94869.0,0.34559148]
[1736818829188,0.00190907,94870.0,94869.0,1.84559148]
[1736818829592,0.00190907,94870.0,94869.0,1.84659148]
[1736818829813,0.00190907,94870.0,94869.0,1.84559148]
[1736818830217,0.00190907,94870.0,94869.0,1.85459148]
[1736818830445,0.00190907,94870.0,94869.0,1.84559148]
[1736818830815,0.00190907,94870.0,94869.0,1.85459148]
[1736818831843,0.00190907,94870.0,94869.0,1.85959148]
[1736818832394,0.00190907,94870.0,94869.0,1.85459148]
[1736818832774,0.00190907,94870.0,94869.0,1.86059148]
[1736818833645,0.00190907,94870.0,94869.0,1.86843681]
[1736818834959,0.00190907,94870.0,94869.0,1.86059148]
[1736818835160,0.00190907,94870.0,94869.0,2.96739148]
[1736818835887,0.00190907,94870.0,94869.0,2.96139148]
[1736818836089,0.00190907,94870.0,94869.0,2.95239148]
[1736818836300,0.00190907,94870.0,94869.0,2.95839148]
[1736818836499,0.00190907,94870.0,94869.0,2.96739148]
[1736818836705,0.00190907,94870.0,94869.0,2.95239148]
[1736818836901,0.00190907,94870.0,94869.0,2.96139148]
[1736818838209,0.00190907,94870.0,94869.0,2.98700421]
[1736818839668,0.00190907,94870.0,94869.0,3.26974951]
[1736818840988,0.00190907,94870.0,94869.0,2.98700421]
[1736818841907,0.00190907,94870.0,94869.0,2.98100421]
[1736818842099,0.00190907,94870.0,94869.0,2.98700421]
[1736818842461,0.00190907,94870.0,94869.0,2.97800421]
[1736818842716,0.00190907,94870.0,94869.0,2.98100421]
[1736818842964,0.00190907,94870.0,94869.0,2.97800421]
[1736818843418,0.00190907,94870.0,94869.0,2.98100421]
[1736818843645,0.00190907,94870.0,94869.0,2.97200421]
[1736818843877,0.00190907,94870.0,94869.0,2.98700421]
[1736818844103,0.00190907,94870.0,94869.0,2.97800421]
[1736818844453,0.00190907,94870.0,94869.0,2.98700421]
[1736818845123,0.00190907,94870.0,94869.0,2.98100421]
[1736818845327,0.00190907,94870.0,94869.0,2.98500421]
[1736818845947,0.00190907,94870.0,94869.0,2.97200421]
[1736818846143,0.00190907,94870.0,94869.0,2.95639148]
[1736818846477,0.00190907,94870.0,94869.0,2.96539148]
[1736818849558,0.00190907,94870.0,94869.0,2.97163148]
[1736818851395,0.00190907,94870.0,94869.0,2.64153148]
[1736818851637,0.00190907,94870.0,94869.0,2.84153148]
[1736818851872,0.00190907,94870.0,94869.0,4.14669248]
[1736818852163,7e-08,94870.0,94869.0,4.28079248]
[1736818852619,7e-08,94870.0,94869.0,3.10333148]
[1736818853059,7e-08,94870.0,94869.0,3.10733148]
[1736818853451,7e-08,94870.0,94869.0,3.10333148]
[1736818853655,7e-08,94870.0,94869.0,3.10433148]
[1736818853889,7e-08,94870.0,94869.0,3.09533148]
[1736818854108,7e-08,94870.0,94869.0,3.09633148]
[1736818854451,7e-08,94870.0,94869.0,3.09533148]
[1736818854645,7e-08,94870.0,94869.0,3.09633148]
[1736818855697,0.00179032,94870.0,94869.0,3.09633148]
[1736818856035,0.00179032,94870.0,94869.0,4.79975748]
[1736818856267,0.00179032,94870.0,94869.0,4.77997248]
[1736818856558,0.00179032,94870.0,94869.0,4.35619148]
[1736818856795,0.00179032,94870.0,94869.0,4.28329048]
[1736818859501,0.00179032,94870.0,94869.0,4.31596522]
[1736818859692,0.00179032,94870.0,94869.0,4.31596474]
[1736818860082,0.00179032,94870.0,94869.0,4.28329048]
[1736818860356,0.00179032,94870.0,94869.0,4.31597365]
[1736818860599,0.00179032,94870.0,94869.0,4.20487365]
[1736818860827,0.00179032,94870.0,94869.0,3.82475165]
[1736818861060,0.00179032,94870.0,94869.0,3.21940748]
[1736818861299,0.00179032,94870.0,94869.0,2.83053148]
[1736818861535,0.00179032,94870.0,94869.0,2.48053148]
[1736818861751,0.00179032,94870.0,94869.0,2.47429148]
[1736818861978,0.00179032,94870.0,94869.0,1.93769148]
[1736818862193,0.00179032,94870.0,94869.0,1.94393148]
[1736818862439,0.00179032,94870.0,94869.0,2.40374848]
[1736818862676,0.00179032,94870.0,94869.0,2.50374848]
[1736818863205,0.00179032,94870.0,94869.0,2.64890148]
[1736818863448,0.00179032,94870.0,94869.0,2.30050848]
[1736818863725,0.08209032,94870.0,94869.0,1.51592764]
[1736818863940,0.08209032,94870.0,94869.0,1.51192764]
[1736818864197,0.08309032,94870.0,94869.0,1.52092764]
[1736818864426,0.08209032,94870.0,94869.0,1.50568764]
[1736818864671,0.08209032,94870.0,94869.0,1.51468764]
[1736818864672,0.08309032,94870.0,94869.0,1.51468764]
[1736818865164,0.08209032,94870.0,94869.0,1.50568764]
[1736818865385,0.08209032,94870.0,94869.0,1.51968764]
[1736818865386,0.08309032,94870.0,94869.0,1.51968764]
[1736818865607,0.08209032,94870.0,94869.0,0.01068764]
[1736818865832,0.08209032,94870.0,94869.0,0.00568764]
[1736818866032,0.08209032,94870.0,94862.0,0.0008525]
[1736818866260,0.08209032,94870.0,94863.0,1.5]
[1736818866379,0.08209032,94870.0,94863.0,1.50707328]
[1736818867148,0.08209032,94870.0,94869.0,0.004]
[1736818867284,0.08209032,94870.0,94863.0,1.50707328]
[1736818867487,0.08209032,94870.0,94869.0,0.00707048]
[1736818867701,0.08209032,94870.0,94863.0,1.501]
[1736818867893,0.08209032,94870.0,94869.0,0.00707048]
[1736818868143,0.08209032,94870.0,94869.0,0.0008524]
[1736818868314,0.08209032,94870.0,94869.0,0.00892288]
[1736818868519,0.29390432,94870.0,94869.0,0.0008524]
[1736818868731,0.29390432,94870.0,94869.0,0.00796262]
[1736818869163,0.29290432,94870.0,94869.0,0.00796262]
[1736818869314,0.29390432,94870.0,94869.0,0.0008524]
[1736818869758,0.29290432,94870.0,94869.0,0.0008524]
[1736818870155,0.29390432,94870.0,94869.0,0.0008524]
[1736818870475,0.29390432,94870.0,94869.0,0.0018524]
[1736818870708,0.29390432,94870.0,94869.0,0.0008524]
[1736818871141,0.29390432,94870.0,94869.0,0.0018524]
[1736818871491,0.29290432,94870.0,94869.0,0.0008524]
[1736818871815,0.29590432,94870.0,94869.0,0.0008524]
[1736818872259,0.29490432,94870.0,94869.0,0.0008524]
[1736818872633,0.29690432,94870.0,94869.0,0.0008524]
[1736818873020,0.29490432,94870.0,94869.0,0.0008524]
[1736818873495,0.29890432,94870.0,94869.0,0.0008524]
[1736818873618,0.29490432,94870.0,94869.0,0.0008524]
[1736818874012,0.29690432,94870.0,94869.0,0.0008524]
[1736818874729,0.29490432,94870.0,94869.0,0.0008524]
[1736818875642,0.29290432,94870.0,94869.0,0.0008524]